[Event "Early-Titled-Tuesday-Blitz-February-20-2024"]
[Site "Chess.com"]
[Date "2024.02.20"]
[Round "4"]
[White "gshwbedhkhd"]
[Black "emeli_chess"]
[Result "0-1"]
[WhiteElo "2607"]
[BlackElo "2426"]
[TimeControl "180+1"]
[EndTime "8:40:51 PST"]
[Termination "emeli_chess won on time"]

1. e4 {[%clk 0:02:57.3]} 1... e5 {[%clk 0:02:58.7]} 2. Nf3 {[%clk 0:02:55.7]}
2... Nc6 {[%clk 0:02:58.7]} 3. Nc3 {[%clk 0:02:56.4]} 3... Nf6 {[%clk
0:02:58.2]} 4. a3 {[%clk 0:02:57]} 4... d5 {[%clk 0:02:55.1]} 5. Bb5 {[%clk
0:02:52.3]} 5... d4 {[%clk 0:02:50.2]} 6. Ne2 {[%clk 0:02:50.2]} 6... Bd6 {[%clk
0:02:49.9]} 7. d3 {[%clk 0:02:47.8]} 7... h6 {[%clk 0:02:49.2]} 8. h3 {[%clk
0:02:46.9]} 8... Bd7 {[%clk 0:02:44.4]} 9. g4 {[%clk 0:02:43.5]} 9... Ne7 {[%clk
0:02:39.6]} 10. Bc4 {[%clk 0:02:41.8]} 10... Be6 {[%clk 0:02:34.6]} 11. Bxe6
{[%clk 0:02:41.1]} 11... fxe6 {[%clk 0:02:34.6]} 12. c3 {[%clk 0:02:40.6]} 12...
c5 {[%clk 0:02:33.8]} 13. g5 {[%clk 0:02:39.5]} 13... Nh5 {[%clk 0:02:28.1]} 14.
gxh6 {[%clk 0:02:38]} 14... gxh6 {[%clk 0:02:27.5]} 15. Nexd4 {[%clk 0:02:19.5]}
15... cxd4 {[%clk 0:02:22.9]} 16. Nxe5 {[%clk 0:02:18.1]} 16... Nf6 {[%clk
0:02:10.5]} 17. Nc4 {[%clk 0:02:07.2]} 17... Bc7 {[%clk 0:01:55.9]} 18. e5
{[%clk 0:02:04.8]} 18... Nfd5 {[%clk 0:01:49.8]} 19. Qh5+ {[%clk 0:02:01.5]}
19... Kd7 {[%clk 0:01:48.8]} 20. cxd4 {[%clk 0:01:59.9]} 20... Qf8 {[%clk
0:01:30]} 21. Bd2 {[%clk 0:01:53]} 21... Qf5 {[%clk 0:01:29]} 22. Qg4 {[%clk
0:01:45.6]} 22... h5 {[%clk 0:01:25]} 23. Qe4 {[%clk 0:01:36.9]} 23... Raf8
{[%clk 0:01:20.7]} 24. Rh2 {[%clk 0:01:18.8]} 24... Qf3 {[%clk 0:01:15.4]} 25.
Bg5 {[%clk 0:01:11.6]} 25... Qxe4+ {[%clk 0:00:51.6]} 26. dxe4 {[%clk
0:01:10.5]} 26... Nf4 {[%clk 0:00:51.7]} 27. O-O-O {[%clk 0:01:06.8]} 27... h4
{[%clk 0:00:44.4]} 28. f3 {[%clk 0:00:38.4]} 28... Rh5 {[%clk 0:00:36.4]} 29.
Bf6 {[%clk 0:00:34.5]} 29... Ng8 {[%clk 0:00:32.1]} 30. Bg7 {[%clk 0:00:31]}
30... Rf7 {[%clk 0:00:30.9]} 31. Rg1 {[%clk 0:00:31.3]} 31... Rh7 {[%clk
0:00:28.2]} 32. Bf6 {[%clk 0:00:19.1]} 32... Nxf6 {[%clk 0:00:27.8]} 33. exf6
{[%clk 0:00:20]} 33... Rxf6 {[%clk 0:00:28.3]} 34. Rd2 {[%clk 0:00:14.6]} 34...
Nxh3 {[%clk 0:00:26.8]} 35. Rh1 {[%clk 0:00:14.3]} 35... Nf4 {[%clk 0:00:26.7]}
36. Ne5+ {[%clk 0:00:12.7]} 36... Ke8 {[%clk 0:00:24.7]} 37. Ng4 {[%clk
0:00:12.6]} 37... Rg6 {[%clk 0:00:23.8]} 38. e5 {[%clk 0:00:12.6]} 38... Nd5
{[%clk 0:00:21.7]} 39. Rc2 {[%clk 0:00:12.8]} 39... Bb6 {[%clk 0:00:20]} 40.
Rc8+ {[%clk 0:00:12]} 40... Kd7 {[%clk 0:00:19.9]} 41. Rb8 {[%clk 0:00:12.1]}
41... Kc7 {[%clk 0:00:19.7]} 42. Rf8 {[%clk 0:00:12.6]} 42... Bxd4 {[%clk
0:00:19.1]} 43. Kd2 {[%clk 0:00:11.9]} 43... h3 {[%clk 0:00:18.3]} 44. Rc1+
{[%clk 0:00:11.5]} 44... Kb6 {[%clk 0:00:16.9]} 45. b4 {[%clk 0:00:08.2]} 45...
h2 {[%clk 0:00:16.4]} 46. Rh1 {[%clk 0:00:07.7]} 46... Rxg4 {[%clk 0:00:15]} 47.
fxg4 {[%clk 0:00:07.4]} 47... Bg1 {[%clk 0:00:15.2]} 48. Kd3 {[%clk 0:00:06.8]}
48... Rg7 {[%clk 0:00:14.8]} 49. Rh8 {[%clk 0:00:04.2]} 49... Rxg4 {[%clk
0:00:14.5]} 50. R1xh2 {[%clk 0:00:04.9]} 50... Bxh2 {[%clk 0:00:14]} 51. Rxh2
{[%clk 0:00:05.8]} 51... Kb5 {[%clk 0:00:12.1]} 52. Rh6 {[%clk 0:00:04.2]} 52...
Ka4 {[%clk 0:00:11.8]} 53. Ke2 {[%clk 0:00:03.6]} 53... Kxa3 {[%clk 0:00:11.3]}
54. Kf3 {[%clk 0:00:04.1]} 54... Rxb4 {[%clk 0:00:10.2]} 55. Rxe6 {[%clk
0:00:04.5]} 55... Rd4 {[%clk 0:00:09.6]} 56. Re8 {[%clk 0:00:03.7]} 56... b5
{[%clk 0:00:09]} 57. Ra8 {[%clk 0:00:03]} 57... Kb2 {[%clk 0:00:05.2]} 58. Rxa7
{[%clk 0:00:02.5]} 58... b4 {[%clk 0:00:05.4]} 59. e6 {[%clk 0:00:03]} 59... b3
{[%clk 0:00:05.4]} 60. e7 {[%clk 0:00:03.4]} 60... Nxe7 {[%clk 0:00:05.4]} 61.
Rxe7 {[%clk 0:00:02.9]} 61... Kc1 {[%clk 0:00:04.7]} 62. Re1+ {[%clk 0:00:03]}
62... Kc2 {[%clk 0:00:04.9]} 63. Re2+ {[%clk 0:00:03.4]} 63... Rd2 {[%clk
0:00:05]} 64. Re6 {[%clk 0:00:02.7]} 64... b2 {[%clk 0:00:05.1]} 65. Rc6+ {[%clk
0:00:03.4]} 65... Kd1 {[%clk 0:00:05.2]} 66. Rb6 {[%clk 0:00:03.9]} 66... Kc1
{[%clk 0:00:05.4]} 67. Ke3 {[%clk 0:00:04.1]} 67... Rc2 {[%clk 0:00:04.6]} 68.
Rh6 {[%clk 0:00:03.1]} 68... b1=Q {[%clk 0:00:04.8]} 69. Rh1+ {[%clk 0:00:03.6]}
69... Kb2 {[%clk 0:00:05.2]} 0-1

[Event "Early-Titled-Tuesday-Blitz-February-20-2024"]
[Site "Chess.com"]
[Date "2024.02.20"]
[Round "4"]
[White "simonachess"]
[Black "zurzan"]
[Result "1/2-1/2"]
[WhiteElo "2298"]
[BlackElo "2058"]
[TimeControl "180+1"]
[EndTime "8:41:40 PST"]
[Termination "Game drawn - timeout vs insufficient material"]

1. d4 {[%clk 0:02:56.2]} 1... Nf6 {[%clk 0:02:59.3]} 2. c4 {[%clk 0:02:56.8]}
2... g6 {[%clk 0:02:59.5]} 3. Nf3 {[%clk 0:02:57.2]} 3... Bg7 {[%clk 0:02:59.6]}
4. g3 {[%clk 0:02:58.1]} 4... O-O {[%clk 0:02:59.1]} 5. Bg2 {[%clk 0:02:59]}
5... c5 {[%clk 0:02:56.9]} 6. d5 {[%clk 0:02:58.8]} 6... d6 {[%clk 0:02:56.5]}
7. Nc3 {[%clk 0:02:59.2]} 7... a6 {[%clk 0:02:54]} 8. O-O {[%clk 0:02:57.4]}
8... e6 {[%clk 0:02:53.2]} 9. dxe6 {[%clk 0:02:51.4]} 9... Bxe6 {[%clk
0:02:51.8]} 10. Qd3 {[%clk 0:02:50.8]} 10... Nc6 {[%clk 0:02:49.9]} 11. a3
{[%clk 0:02:49.5]} 11... Bf5 {[%clk 0:02:48.5]} 12. e4 {[%clk 0:02:49.4]} 12...
Be6 {[%clk 0:02:48.3]} 13. b3 {[%clk 0:02:48.6]} 13... Rb8 {[%clk 0:02:46.5]}
14. Bb2 {[%clk 0:02:48.6]} 14... Na5 {[%clk 0:02:44.2]} 15. Qc2 {[%clk
0:02:47.5]} 15... b5 {[%clk 0:02:42.6]} 16. Nd5 {[%clk 0:02:42.4]} 16... bxc4
{[%clk 0:02:36.3]} 17. bxc4 {[%clk 0:02:07.8]} 17... Rxb2 {[%clk 0:02:32.7]} 18.
Qxb2 {[%clk 0:02:04.7]} 18... Nxd5 {[%clk 0:02:29]} 19. Qc2 {[%clk 0:02:00.1]}
19... Nb6 {[%clk 0:02:20.8]} 20. Rac1 {[%clk 0:01:34.7]} 20... Nbxc4 {[%clk
0:02:19.9]} 21. Rfe1 {[%clk 0:01:22.3]} 21... Nxa3 {[%clk 0:02:16.9]} 22. Qa4
{[%clk 0:01:20.1]} 22... N3c4 {[%clk 0:02:08.9]} 23. Bf1 {[%clk 0:01:06.6]}
23... Nb2 {[%clk 0:01:36.7]} 24. Qa3 {[%clk 0:00:28.4]} 24... c4 {[%clk
0:01:32.4]} 25. e5 {[%clk 0:00:24.8]} 25... Nd3 {[%clk 0:01:26.1]} 26. Bxd3
{[%clk 0:00:23.2]} 26... cxd3 {[%clk 0:01:27]} 27. Qxd3 {[%clk 0:00:22.1]} 27...
dxe5 {[%clk 0:01:25.6]} 28. Qxd8 {[%clk 0:00:18.8]} 28... Rxd8 {[%clk
0:01:24.3]} 29. Nxe5 {[%clk 0:00:19.4]} 29... Nb3 {[%clk 0:01:17.2]} 30. Rc7
{[%clk 0:00:15.6]} 30... a5 {[%clk 0:01:13.5]} 31. Ra7 {[%clk 0:00:10.3]} 31...
Bxe5 {[%clk 0:01:01.2]} 32. Rxe5 {[%clk 0:00:09.6]} 32... Rd4 {[%clk 0:00:56.6]}
33. f4 {[%clk 0:00:07.9]} 33... a4 {[%clk 0:00:55.5]} 34. Rb5 {[%clk 0:00:06.5]}
34... Nd2 {[%clk 0:00:48.9]} 35. Kf2 {[%clk 0:00:04.3]} 35... Bb3 {[%clk
0:00:48.2]} 36. Ke3 {[%clk 0:00:04.4]} 36... Rd6 {[%clk 0:00:46.6]} 37. Rb8+
{[%clk 0:00:04.1]} 37... Kg7 {[%clk 0:00:46]} 38. g4 {[%clk 0:00:04]} 38... Nc4+
{[%clk 0:00:45.2]} 39. Ke4 {[%clk 0:00:03.7]} 39... Rd2 {[%clk 0:00:40.6]} 40.
f5 {[%clk 0:00:03.7]} 40... Re2+ {[%clk 0:00:40.2]} 41. Kf3 {[%clk 0:00:03.8]}
41... Re3+ {[%clk 0:00:39.8]} 42. Kf4 {[%clk 0:00:04]} 42... Re1 {[%clk
0:00:33.4]} 43. h4 {[%clk 0:00:03.8]} 43... gxf5 {[%clk 0:00:32.5]} 44. gxf5
{[%clk 0:00:03.7]} 44... Rf1+ {[%clk 0:00:32.4]} 45. Ke4 {[%clk 0:00:04.2]}
45... Bc2+ {[%clk 0:00:31.7]} 46. Kd4 {[%clk 0:00:04.7]} 46... Nd6 {[%clk
0:00:30.6]} 47. Kc3 {[%clk 0:00:01.9]} 47... Bb3 {[%clk 0:00:29.9]} 48. Kb4
{[%clk 0:00:01.7]} 48... Nxf5 {[%clk 0:00:29.7]} 49. Ka3 {[%clk 0:00:02.2]}
49... Ne3 {[%clk 0:00:29.2]} 50. Rbb7 {[%clk 0:00:02.7]} 50... Rf4 {[%clk
0:00:27.7]} 51. Kb2 {[%clk 0:00:02.8]} 51... Rxh4 {[%clk 0:00:27.2]} 52. Kc3
{[%clk 0:00:03.2]} 52... Nd5+ {[%clk 0:00:26.2]} 53. Kd3 {[%clk 0:00:03.1]}
53... Nf6 {[%clk 0:00:25]} 54. Ke2 {[%clk 0:00:03.6]} 54... Rh2+ {[%clk
0:00:24]} 55. Kf3 {[%clk 0:00:03.5]} 55... Bd1+ {[%clk 0:00:22.2]} 56. Kg3
{[%clk 0:00:04]} 56... Rd2 {[%clk 0:00:20.8]} 57. Rxf7+ {[%clk 0:00:04.7]} 57...
Kg6 {[%clk 0:00:20.7]} 58. Rg7+ {[%clk 0:00:05.4]} 58... Kf5 {[%clk 0:00:20.8]}
59. Rgf7 {[%clk 0:00:06]} 59... h5 {[%clk 0:00:19]} 60. Ra5+ {[%clk 0:00:06]}
60... Kg6 {[%clk 0:00:16.5]} 61. Rf8 {[%clk 0:00:06.4]} 61... Kg7 {[%clk
0:00:15.8]} 62. Rb8 {[%clk 0:00:06.1]} 62... Ne4+ {[%clk 0:00:14.8]} 63. Kf4
{[%clk 0:00:05.5]} 63... Nf6 {[%clk 0:00:13.8]} 64. Rb7+ {[%clk 0:00:05.6]}
64... Rd7 {[%clk 0:00:13.7]} 65. Rb6 {[%clk 0:00:05.6]} 65... h4 {[%clk
0:00:09.4]} 66. Kg5 {[%clk 0:00:06]} 66... Rf7 {[%clk 0:00:09.4]} 67. Kxh4
{[%clk 0:00:06]} 67... Ne4 {[%clk 0:00:08.5]} 68. Rba6 {[%clk 0:00:04.6]} 68...
Nc3 {[%clk 0:00:07.8]} 69. Ra7 {[%clk 0:00:04.6]} 69... Rxa7 {[%clk 0:00:06.1]}
70. Rxa7+ {[%clk 0:00:05.5]} 70... Kf6 {[%clk 0:00:04.1]} 71. Kg3 {[%clk
0:00:06]} 71... Ke5 {[%clk 0:00:03.9]} 72. Kf2 {[%clk 0:00:06.2]} 72... Kd4
{[%clk 0:00:04.1]} 73. Ke1 {[%clk 0:00:06.5]} 73... Bb3 {[%clk 0:00:03.6]} 74.
Kd2 {[%clk 0:00:05.4]} 74... Nb5 {[%clk 0:00:02.2]} 75. Ra8 {[%clk 0:00:05.6]}
75... Kc4 {[%clk 0:00:02.4]} 76. Kc1 {[%clk 0:00:05.9]} 76... Kb4 {[%clk
0:00:02.8]} 77. Rxa4+ {[%clk 0:00:06]} 77... Kxa4 {[%clk 0:00:02.3]} 78. Kd2
{[%clk 0:00:06.9]} 78... Kb4 {[%clk 0:00:02.7]} 79. Ke3 {[%clk 0:00:07.6]} 79...
Bc4 {[%clk 0:00:03.1]} 80. Ke4 {[%clk 0:00:08.5]} 80... Nc3+ {[%clk 0:00:03.3]}
81. Ke5 {[%clk 0:00:09.4]} 81... Kc5 {[%clk 0:00:03.4]} 82. Kf4 {[%clk
0:00:10.3]} 82... Nd5+ {[%clk 0:00:03.3]} 83. Kf3 {[%clk 0:00:10.8]} 83... Kd4
{[%clk 0:00:03.9]} 84. Kg4 {[%clk 0:00:11.2]} 84... Bd3 {[%clk 0:00:04.5]} 85.
Kg5 {[%clk 0:00:11.3]} 85... Ke4 {[%clk 0:00:05.2]} 86. Kg6 {[%clk 0:00:11.7]}
86... Nf4+ {[%clk 0:00:04.9]} 87. Kf7 {[%clk 0:00:12.6]} 87... Ke5 {[%clk
0:00:05.3]} 88. Ke7 {[%clk 0:00:13.5]} 88... Nd5+ {[%clk 0:00:05.6]} 89. Kf7
{[%clk 0:00:14.3]} 89... Bf5 {[%clk 0:00:05.9]} 90. Ke8 {[%clk 0:00:14.6]} 90...
Kd6 {[%clk 0:00:06.3]} 91. Kf7 {[%clk 0:00:15.5]} 91... Be6+ {[%clk 0:00:05.5]}
92. Kg7 {[%clk 0:00:16.4]} 92... Ke5 {[%clk 0:00:05.5]} 93. Kg6 {[%clk
0:00:16.9]} 93... Nf6 {[%clk 0:00:05.4]} 94. Kg7 {[%clk 0:00:17.8]} 94... Kf5
{[%clk 0:00:05.3]} 95. Kf8 {[%clk 0:00:18.7]} 95... Kg6 {[%clk 0:00:04.8]} 96.
Ke7 {[%clk 0:00:19.6]} 96... Bf5 {[%clk 0:00:03.8]} 97. Kd6 {[%clk 0:00:20.5]}
97... Kf7 {[%clk 0:00:03.6]} 98. Ke5 {[%clk 0:00:21.4]} 98... Bg6 {[%clk
0:00:03.2]} 99. Kf4 {[%clk 0:00:21.9]} 99... Nh5+ {[%clk 0:00:02.2]} 100. Kg5
{[%clk 0:00:22.8]} 1/2-1/2

[Event "Early-Titled-Tuesday-Blitz-February-20-2024"]
[Site "Chess.com"]
[Date "2024.02.20"]
[Round "4"]
[White "mishanick"]
[Black "xamax2000"]
[Result "1/2-1/2"]
[WhiteElo "3054"]
[BlackElo "2863"]
[TimeControl "180+1"]
[EndTime "8:41:44 PST"]
[Termination "Game drawn by 50-move rule"]

1. d4 {[%clk 0:03:00.9]} 1... d5 {[%clk 0:03:00.1]} 2. c4 {[%clk 0:03:01.4]}
2... e6 {[%clk 0:03:00.6]} 3. Nc3 {[%clk 0:03:02]} 3... Nf6 {[%clk 0:03:01.1]}
4. Bg5 {[%clk 0:03:02.1]} 4... c6 {[%clk 0:02:58.3]} 5. e3 {[%clk 0:02:59.6]}
5... h6 {[%clk 0:02:57.9]} 6. Bh4 {[%clk 0:02:59.1]} 6... Be7 {[%clk 0:02:55.8]}
7. Bd3 {[%clk 0:02:58.7]} 7... O-O {[%clk 0:02:53.9]} 8. Nf3 {[%clk 0:02:59.1]}
8... dxc4 {[%clk 0:02:51.4]} 9. Bxc4 {[%clk 0:03:00]} 9... Nbd7 {[%clk
0:02:45.2]} 10. O-O {[%clk 0:02:59.8]} 10... b5 {[%clk 0:02:45.3]} 11. Bd3
{[%clk 0:03:00.1]} 11... Bb7 {[%clk 0:02:44.8]} 12. Rc1 {[%clk 0:02:56]} 12...
Rc8 {[%clk 0:02:44]} 13. a3 {[%clk 0:02:53.7]} 13... a5 {[%clk 0:02:40.2]} 14.
Ne5 {[%clk 0:02:52.8]} 14... b4 {[%clk 0:02:16.6]} 15. axb4 {[%clk 0:02:51.8]}
15... axb4 {[%clk 0:02:17.5]} 16. Na4 {[%clk 0:01:45.7]} 16... c5 {[%clk
0:02:04.5]} 17. Bb5 {[%clk 0:01:39.2]} 17... Nxe5 {[%clk 0:01:37.8]} 18. dxe5
{[%clk 0:01:38.9]} 18... Nd5 {[%clk 0:01:36.3]} 19. Bxe7 {[%clk 0:00:46.3]}
19... Qxe7 {[%clk 0:01:37.2]} 20. Qg4 {[%clk 0:00:45.1]} 20... Bc6 {[%clk
0:01:03.5]} 21. Rxc5 {[%clk 0:00:29.7]} 21... Bxb5 {[%clk 0:00:51]} 22. Rxb5
{[%clk 0:00:30.6]} 22... Rc2 {[%clk 0:00:44]} 23. Qd4 {[%clk 0:00:18.4]} 23...
Rfc8 {[%clk 0:00:35.8]} 24. g3 {[%clk 0:00:18.8]} 24... R2c4 {[%clk 0:00:14.7]}
25. Qd3 {[%clk 0:00:16.4]} 25... Qd7 {[%clk 0:00:14.6]} 26. Rxd5 {[%clk
0:00:16.4]} 26... Qxd5 {[%clk 0:00:11.2]} 27. Qxd5 {[%clk 0:00:16.6]} 27... exd5
{[%clk 0:00:12.1]} 28. Nb6 {[%clk 0:00:17]} 28... R8c5 {[%clk 0:00:10.7]} 29.
Nxc4 {[%clk 0:00:17.4]} 29... dxc4 {[%clk 0:00:11.6]} 30. Rc1 {[%clk 0:00:17.6]}
30... c3 {[%clk 0:00:07.6]} 31. bxc3 {[%clk 0:00:17.7]} 31... Rxc3 {[%clk
0:00:07.7]} 32. Rb1 {[%clk 0:00:17.7]} 32... b3 {[%clk 0:00:08.1]} 33. Kf1
{[%clk 0:00:18.1]} 33... g5 {[%clk 0:00:03.8]} 34. h3 {[%clk 0:00:15.7]} 34...
h5 {[%clk 0:00:04.1]} 35. g4 {[%clk 0:00:15.4]} 35... hxg4 {[%clk 0:00:04.3]}
36. hxg4 {[%clk 0:00:16.3]} 36... Rc5 {[%clk 0:00:03.8]} 37. Ke2 {[%clk
0:00:15.7]} 37... Rxe5 {[%clk 0:00:04.3]} 38. Rxb3 {[%clk 0:00:15.7]} 38... Kg7
{[%clk 0:00:05.2]} 39. Rb4 {[%clk 0:00:15.4]} 39... Ra5 {[%clk 0:00:05.6]} 40.
Kd3 {[%clk 0:00:15.4]} 40... Ra2 {[%clk 0:00:05.9]} 41. f3 {[%clk 0:00:15.1]}
41... Ra3+ {[%clk 0:00:06.4]} 42. Ke4 {[%clk 0:00:15.5]} 42... Ra5 {[%clk
0:00:07.2]} 43. Rd4 {[%clk 0:00:15.7]} 43... Kg6 {[%clk 0:00:07.6]} 44. Rd5
{[%clk 0:00:15.2]} 44... Ra4+ {[%clk 0:00:07.5]} 45. Rd4 {[%clk 0:00:13.8]}
45... Ra5 {[%clk 0:00:07.2]} 46. Rd6+ {[%clk 0:00:14.1]} 46... f6 {[%clk
0:00:07.7]} 47. f4 {[%clk 0:00:07.3]} 47... gxf4 {[%clk 0:00:07.4]} 48. exf4
{[%clk 0:00:08.2]} 48... Ra4+ {[%clk 0:00:07.7]} 49. Kf3 {[%clk 0:00:08.7]}
49... Kg7 {[%clk 0:00:08.3]} 50. Kg3 {[%clk 0:00:08.4]} 50... Ra1 {[%clk
0:00:08.1]} 51. Rd7+ {[%clk 0:00:08.3]} 51... Kg8 {[%clk 0:00:07.6]} 52. Kf3
{[%clk 0:00:07.7]} 52... Re1 {[%clk 0:00:08.2]} 53. Rc7 {[%clk 0:00:07.5]} 53...
Kf8 {[%clk 0:00:07.8]} 54. Kf2 {[%clk 0:00:06.5]} 54... Re4 {[%clk 0:00:07.4]}
55. Kg3 {[%clk 0:00:06.9]} 55... Re1 {[%clk 0:00:08.1]} 56. Ra7 {[%clk
0:00:05.3]} 56... Kg8 {[%clk 0:00:07.2]} 57. Kf3 {[%clk 0:00:05.3]} 57... Kf8
{[%clk 0:00:07]} 58. Rh7 {[%clk 0:00:03.1]} 58... Kg8 {[%clk 0:00:07]} 59. Rh2
{[%clk 0:00:03.8]} 59... Kg7 {[%clk 0:00:06.8]} 60. Re2 {[%clk 0:00:04.5]} 60...
Rf1+ {[%clk 0:00:07.1]} 61. Ke4 {[%clk 0:00:05]} 61... Ra1 {[%clk 0:00:05.1]}
62. Kf5 {[%clk 0:00:02.4]} 62... Ra5+ {[%clk 0:00:04.1]} 63. Ke6 {[%clk
0:00:03]} 63... Ra6+ {[%clk 0:00:04.4]} 64. Ke7 {[%clk 0:00:03.5]} 64... Ra7+
{[%clk 0:00:04.6]} 65. Ke8 {[%clk 0:00:03.6]} 65... Ra8+ {[%clk 0:00:05.1]} 66.
Kd7 {[%clk 0:00:04.1]} 66... Ra7+ {[%clk 0:00:05.6]} 67. Ke6 {[%clk 0:00:04.6]}
67... Ra6+ {[%clk 0:00:06.1]} 68. Kf5 {[%clk 0:00:05.3]} 68... Ra5+ {[%clk
0:00:06.5]} 69. Ke4 {[%clk 0:00:06.1]} 69... Ra4+ {[%clk 0:00:07]} 70. Kf3
{[%clk 0:00:06.8]} 70... Ra3+ {[%clk 0:00:07.2]} 71. Re3 {[%clk 0:00:07.1]}
71... Ra1 {[%clk 0:00:07.9]} 72. Re7+ {[%clk 0:00:07.4]} 72... Kf8 {[%clk
0:00:08.2]} 73. Rd7 {[%clk 0:00:06.2]} 73... Re1 {[%clk 0:00:08.6]} 74. Kf2
{[%clk 0:00:05.6]} 74... Re4 {[%clk 0:00:08.9]} 75. Kg3 {[%clk 0:00:05.6]} 75...
Re1 {[%clk 0:00:09.6]} 76. Rb7 {[%clk 0:00:04.1]} 76... Kg8 {[%clk 0:00:09.1]}
77. Kf3 {[%clk 0:00:03.8]} 77... Kf8 {[%clk 0:00:09.1]} 78. Rc7 {[%clk
0:00:03.7]} 78... Re6 {[%clk 0:00:08.2]} 79. Rc3 {[%clk 0:00:01.7]} 79... Re1
{[%clk 0:00:07.9]} 80. Re3 {[%clk 0:00:02.4]} 80... Ra1 {[%clk 0:00:08.5]} 81.
Ke4 {[%clk 0:00:02.9]} 81... Kf7 {[%clk 0:00:09]} 82. Rd3 {[%clk 0:00:01.8]}
82... Ra4+ {[%clk 0:00:09.4]} 83. Kf3 {[%clk 0:00:01.8]} 83... Ra1 {[%clk
0:00:09]} 84. Rd7+ {[%clk 0:00:02.4]} 84... Kf8 {[%clk 0:00:08.3]} 85. Ke4
{[%clk 0:00:02.6]} 85... Ra5 {[%clk 0:00:08.7]} 86. Rd5 {[%clk 0:00:02.4]} 86...
Ra7 {[%clk 0:00:07.1]} 87. Kf5 {[%clk 0:00:02.9]} 87... Kf7 {[%clk 0:00:07.8]}
88. Rc5 {[%clk 0:00:03.2]} 88... Rb7 {[%clk 0:00:08.1]} 89. Ra5 {[%clk
0:00:03.6]} 89... Rc7 {[%clk 0:00:08.3]} 90. Ra6 {[%clk 0:00:03.4]} 90... Rc5+
{[%clk 0:00:08.3]} 91. Ke4 {[%clk 0:00:04]} 91... Rc4+ {[%clk 0:00:08.9]} 92.
Ke3 {[%clk 0:00:04.5]} 92... Rc3+ {[%clk 0:00:09.2]} 93. Kd4 {[%clk 0:00:05]}
93... Rc7 {[%clk 0:00:08.3]} 94. Kd5 {[%clk 0:00:02.9]} 94... Rb7 {[%clk
0:00:08.4]} 95. Ra4 {[%clk 0:00:02.3]} 95... Rd7+ {[%clk 0:00:08]} 96. Ke4
{[%clk 0:00:02.6]} 96... Rb7 {[%clk 0:00:07.5]} 97. Ra5 {[%clk 0:00:03.1]} 97...
Rc7 {[%clk 0:00:07.2]} 98. Kf5 {[%clk 0:00:03.2]} 1/2-1/2

[Event "Early-Titled-Tuesday-Blitz-February-20-2024"]
[Site "Chess.com"]
[Date "2024.02.20"]
[Round "5"]
[White "NovoselovRoman"]
[Black "davigator"]
[Result "1-0"]
[WhiteElo "2544"]
[BlackElo "2350"]
[TimeControl "180+1"]
[EndTime "8:51:01 PST"]
[Termination "NovoselovRoman won by resignation"]

1. d4 {[%clk 0:03:00.9]} 1... Nf6 {[%clk 0:02:57.7]} 2. Nc3 {[%clk 0:03:00.6]}
2... d5 {[%clk 0:02:57]} 3. Bg5 {[%clk 0:03:00]} 3... Nbd7 {[%clk 0:02:56.1]} 4.
Nf3 {[%clk 0:03:00]} 4... c6 {[%clk 0:02:56.1]} 5. e3 {[%clk 0:03:00.4]} 5... b5
{[%clk 0:02:56.3]} 6. Bd3 {[%clk 0:03:00.3]} 6... b4 {[%clk 0:02:56.5]} 7. Ne2
{[%clk 0:03:00.9]} 7... e6 {[%clk 0:02:55.8]} 8. Ne5 {[%clk 0:02:59.6]} 8... Qb6
{[%clk 0:02:52.8]} 9. f4 {[%clk 0:02:52.3]} 9... a5 {[%clk 0:02:52.4]} 10. O-O
{[%clk 0:02:51.9]} 10... Ba6 {[%clk 0:02:52.2]} 11. Ng3 {[%clk 0:02:51.9]} 11...
h6 {[%clk 0:02:49.7]} 12. Bxf6 {[%clk 0:02:37.9]} 12... Nxf6 {[%clk 0:02:46.3]}
13. f5 {[%clk 0:02:38.4]} 13... c5 {[%clk 0:02:36.7]} 14. fxe6 {[%clk
0:02:32.9]} 14... Qxe6 {[%clk 0:02:32.2]} 15. Nf5 {[%clk 0:02:17.1]} 15... Bxd3
{[%clk 0:02:29.9]} 16. cxd3 {[%clk 0:02:16]} 16... Bd6 {[%clk 0:02:25.9]} 17.
Nxg7+ {[%clk 0:02:15.2]} 1-0

[Event "Early-Titled-Tuesday-Blitz-February-20-2024"]
[Site "Chess.com"]
[Date "2024.02.20"]
[Round "5"]
[White "artin10862"]
[Black "margarita_2703"]
[Result "1-0"]
[WhiteElo "2901"]
[BlackElo "2391"]
[TimeControl "180+1"]
[EndTime "8:51:18 PST"]
[Termination "artin10862 won by resignation"]

1. Nf3 {[%clk 0:02:50.2]} 1... d5 {[%clk 0:02:56.9]} 2. g3 {[%clk 0:02:50]} 2...
Nf6 {[%clk 0:02:26.2]} 3. Bg2 {[%clk 0:02:49.2]} 3... e6 {[%clk 0:02:26.6]} 4.
d3 {[%clk 0:02:48.9]} 4... Be7 {[%clk 0:02:27.2]} 5. O-O {[%clk 0:02:49.4]} 5...
O-O {[%clk 0:02:27.9]} 6. Nbd2 {[%clk 0:02:49.9]} 6... c5 {[%clk 0:02:28.5]} 7.
e4 {[%clk 0:02:50.1]} 7... Nc6 {[%clk 0:02:29.2]} 8. Re1 {[%clk 0:02:50.8]} 8...
Nd4 {[%clk 0:02:21.6]} 9. Nxd4 {[%clk 0:02:40.5]} 9... cxd4 {[%clk 0:02:22.5]}
10. e5 {[%clk 0:02:41.4]} 10... Nd7 {[%clk 0:02:21.5]} 11. Qg4 {[%clk 0:02:40]}
11... Qc7 {[%clk 0:02:18.4]} 12. Nf3 {[%clk 0:02:40.1]} 12... Rd8 {[%clk
0:02:12.5]} 13. Bg5 {[%clk 0:02:21]} 13... Bxg5 {[%clk 0:02:10.2]} 14. Qxg5
{[%clk 0:02:20.6]} 14... h6 {[%clk 0:02:09.8]} 15. Qh4 {[%clk 0:02:17.1]} 15...
Qxc2 {[%clk 0:02:06.2]} 16. Qxd8+ {[%clk 0:02:16.6]} 1-0

[Event "Early-Titled-Tuesday-Blitz-February-20-2024"]
[Site "Chess.com"]
[Date "2024.02.20"]
[Round "5"]
[White "Matols"]
[Black "mary-sanna"]
[Result "0-1"]
[WhiteElo "2360"]
[BlackElo "2162"]
[TimeControl "180+1"]
[EndTime "8:51:18 PST"]
[Termination "mary-sanna won by resignation"]

1. d4 {[%clk 0:03:00.9]} 1... d5 {[%clk 0:03:00]} 2. c4 {[%clk 0:03:01.2]} 2...
e6 {[%clk 0:03:00.2]} 3. Nf3 {[%clk 0:03:01.7]} 3... Nf6 {[%clk 0:03:00]} 4. g3
{[%clk 0:03:01.7]} 4... dxc4 {[%clk 0:03:00.1]} 5. Bg2 {[%clk 0:03:01.3]} 5...
Bd7 {[%clk 0:03:00.2]} 6. Ne5 {[%clk 0:02:57.3]} 6... Bc6 {[%clk 0:02:57.6]} 7.
Nxc6 {[%clk 0:02:54.3]} 7... Nxc6 {[%clk 0:02:57.5]} 8. Bxc6+ {[%clk 0:02:54.2]}
8... bxc6 {[%clk 0:02:57.5]} 9. O-O {[%clk 0:02:53]} 9... Be7 {[%clk 0:02:44.9]}
10. e3 {[%clk 0:02:49.2]} 10... h5 {[%clk 0:02:42.7]} 11. Qc2 {[%clk 0:02:41.8]}
11... Qd5 {[%clk 0:02:23.8]} 12. Nd2 {[%clk 0:02:40.6]} 12... h4 {[%clk
0:02:14.9]} 13. Qxc4 {[%clk 0:02:39.2]} 13... hxg3 {[%clk 0:02:12]} 14. fxg3
{[%clk 0:02:40.1]} 14... Ng4 {[%clk 0:01:53.4]} 15. Nf3 {[%clk 0:02:30.5]} 15...
Qxc4 {[%clk 0:01:50.5]} 0-1